fUSD/lending_fUSD_20240301
["ID","MTS","AMOUNT","RATE_DAILY","PERIOD"]
[316026541,1709327492325,-4291.89155424,0.00023,2]
[316026542,1709327492338,-767.48516959,0.00023,2]
[316026543,1709327492349,-3269.9961395,0.00023,2]
[316026544,1709327492985,-1000.0,0.00021816,2]
[316026545,1709327492996,-500.0,0.00021917,2]
[316026546,1709327493008,-465.23066353,0.00021917,2]
[316026547,1709327493021,-34.76933647,0.00021917,2]
[316026548,1709327493031,-500.0,0.00021917,2]
[316026549,1709327493040,-219.06933153,0.00021917,2]
[316026550,1709327493054,-4121.88066847,0.00021917,2]
[316026551,1709327493065,-500.0,0.00021917,2]
[316026552,1709327493075,-500.0,0.00021917,2]
[316026553,1709327493086,-500.0,0.00021917,2]
[316026554,1709327493095,-500.0,0.00022027,2]
[316026555,1709327493106,-351.74,0.00022027,2]
[316026556,1709327493115,-4340.95,0.00022027,2]
[316026557,1709327493124,-500.0,0.00022027,2]
[316026558,1709327493134,-500.0,0.00022027,2]
[316026559,1709327493144,-500.0,0.00022136,2]
[316026560,1709327493155,-500.0,0.00022136,2]
[316026561,1709327493165,-4340.95,0.00022136,2]
[316026562,1709327493174,-500.0,0.00022246,2]
[316026563,1709327493185,-4340.95,0.00022246,2]
[316026564,1709327493195,-500.0,0.00022356,2]
[316026565,1709327493204,-4340.95,0.00022356,2]
[316026566,1709327493213,-500.0,0.00022465,2]
[316026567,1709327493222,-500.0,0.00022575,2]
[316026568,1709327493232,-439.6,0.00022684,2]
[316026569,1709327493241,-268.37164607,0.00022999,2]
[316026570,1709327493250,-268.37164607,0.00022999,2]
[316026571,1709327493258,-268.37164607,0.00022999,2]
[316026572,1709327493268,-50897.83221989,0.00023,2]
[316026573,1709327493280,-513.84877829,0.00023,2]
[316026574,1709327493293,-300.0,0.00023,2]
[316026575,1709327493309,-500.0,0.00021917,2]
[316026576,1709327493318,-486.66399375,0.00023,2]
[316026577,1709327493329,-887.278335,0.00023,2]
[316026578,1709327493340,-20066.83241434,0.00023,2]
[316026579,1709327493366,-150.0,0.00021698,2]
[316026580,1709327493375,-500.0,0.00022136,2]
[316026581,1709327493385,-85430.6041964,0.00023,2]
[316026582,1709327493396,-47544.03073665,0.00023,2]
[316026583,1709327493407,-1550.7625,0.00023,2]
[316026584,1709327493418,-835.51,0.00023,2]
[316026585,1709327493429,-709.5018,0.00023,2]
[316026586,1709327493440,-540.928,0.00023,2]
[316026587,1709327493452,-389.89,0.00023,2]
[316026588,1709327493463,-438.495,0.00023,2]
[316026589,1709327493475,-442.608251,0.00023,2]
[316026590,1709327493487,-505.84,0.00023,2]
[316026591,1709327493499,-448.51,0.00023,2]
[316026592,1709327493511,-2078.8,0.00023,2]
[316026593,1709327493532,-500.0,0.00022136,2]
[316026594,1709327493542,-1152.06465856,0.00023,2]
[316026595,1709327493570,-2.732,0.00022465,2]
[316026596,1709327493787,-1061.93864847,0.00022465,2]
[316026597,1709327493799,-2586.4100647,0.00022465,2]
[316026598,1709327493813,-375.6832297,0.00022465,2]
[316026599,1709327493835,-500.0,0.00022246,2]
[316026600,1709327493844,-500.0,0.00022246,2]
[316026601,1709327493854,-314.18605713,0.00022465,2]
[316026602,1709327493863,-199182.83479591,0.00023,2]
[316026603,1709327494502,-185.0,0.00020651,2]
[316026604,1709327494512,-153.0,0.00021336,2]
[316026605,1709327494521,-773.96849283,0.00021915,2]
[316026606,1709327494531,-155.0,0.00021915,2]
[316026607,1709327494541,-482.04597505,0.00021915,2]
[316026608,1709327494551,-612.13449556,0.00021915,2]
[316026609,1709327494561,-500.0,0.00021917,2]
[316026610,1709327494570,-500.0,0.00021917,2]
[316026611,1709327494580,-500.0,0.00021917,2]
[316026612,1709327494590,-153.0,0.00022021,2]
[316026613,1709327494599,-602.06,0.00022027,2]
[316026614,1709327494611,-2160.2,0.00022123,2]
[316026615,1709327494621,-2665.22016346,0.00022146,2]
[316026616,1709327494631,-500.0,0.00022356,2]
[316026617,1709327494640,-500.0,0.00022465,2]
[316026618,1709327494650,-4340.95,0.00022575,2]
[316026619,1709327494660,-500.0,0.00022575,2]
[316026620,1709327494669,-4340.95,0.00022684,2]
[316026621,1709327494679,-500.0,0.00022684,2]
[316026622,1709327494688,-153.0,0.00022705,2]
[316026623,1709327494698,-22639.49762459,0.0002277,2]
[316026624,1709327494708,-4340.95,0.00022794,2]
[316026625,1709327494721,-500.0,0.00022794,2]
[316026626,1709327494731,-609.8133168,0.00022804,2]
[316026627,1709327494740,-4340.95,0.00022904,2]
[316026628,1709327494750,-268.37164607,0.00022999,2]
[316026629,1709327494760,-268.37164607,0.00022999,2]
[316026630,1709327494769,-268.37164607,0.00022999,2]
[316026631,1709327494780,-141290.41429296,0.00023,2]
[316026632,1709327494796,-697.89995,0.00023,2]
[316026633,1709327494820,-500.0,0.00022027,2]
[316026634,1709327494830,-500.0,0.00022904,2]
[316026635,1709327494839,-8599.57307438,0.00023,2]
[316026636,1709327494961,-5e-08,0.00023,2]
[316026637,1709327494974,-399520.40371938,0.00023,2]
[316026638,1709327494985,-82771.63292889,0.00023,2]
[316026639,1709327495009,-817.78234832,0.00021916,2]
[316026640,1709327495023,-296.03825374,0.00021916,2]
[316026641,1709327495052,-328135.46347923,0.00021916,2]
[316026642,1709327495064,-301.83,0.00022027,2]
[316026643,1709327495074,-125593.84629753,0.00023,2]
[316026644,1709327495314,-452.26188,0.00023,2]
[316026645,1709327659361,734.96,0.00018159,2]
[316026654,1709328003246,150.84236796,0.00018159,2]
[316026655,1709328141644,285.99645839,0.00018159,2]
[316026656,1709328144208,721.92,0.00017893,2]
[316026657,1709328163584,405.11519681,0.00017614,2]
[316026658,1709328309081,505.0,0.00022,30]
[316026659,1709328324419,505.0,0.00024,60]
[316026660,1709328339555,505.0,0.000251,120]
[316026661,1709328391539,506.0,0.00024,90]
[316026662,1709328557177,-204.01923883,0.00019512,2]
[316026663,1709328557197,-155.0,0.00019513,2]
[316026664,1709328557216,-408.79186619,0.00019514,2]
[316026665,1709328557234,-231.77132963,0.00019514,2]
[316026666,1709328557254,-155.0,0.00019515,2]
[316026667,1709328557273,-2964.69771375,0.00019516,2]
[316026668,1709328557294,-250.0,0.00019518,2]
[316026669,1709328557314,-171.52,0.00019527,2]
[316026670,1709328557703,-250.0,0.00019529,2]
[316026671,1709328557725,-2742.2926,0.00019556,2]
[316026672,1709328557747,-23900.0,0.00019631,2]
[316026673,1709328557771,-1635.54,0.00019659,2]
[316026674,1709328557799,-250.0,0.00019664,2]
[316026675,1709328557823,-500.0,0.00019669,2]
[316026676,1709328557845,-150.0,0.00019672,2]
[316026677,1709328557867,-300.0,0.00019672,2]
[316026678,1709328557888,-500.0,0.00019673,2]
[316026679,1709328557909,-1878.49,0.00019673,2]
[316026680,1709328557933,-1000.0,0.00019677,2]
[316026681,1709328557954,-150.0,0.00019677,2]
[316026682,1709328557976,-63.53535226,0.00019686,2]
[316026683,1709328574103,-2267.2641,0.00019513,2]
[316026688,1709328632007,-98.50464774,0.00019686,2]
[316026689,1709328632018,-382.26990626,0.00019743,2]
[316026690,1709328632065,-1530.31881986,0.00019743,2]
[316026691,1709328632077,-307.32430356,0.00019743,2]
[316026692,1709328632185,-744.78468407,0.00019743,2]
[316026693,1709328632195,-660.48,0.00019744,2]
[316026694,1709328632205,-1062.55266185,0.00019812,2]
[316026695,1709328632214,-155.93,0.00019858,2]
[316026696,1709328632224,-178.93,0.00019888,2]
[316026697,1709328632234,-181.44,0.00019888,2]
[316026698,1709328632243,-221.33,0.00019888,2]
[316026699,1709328632253,-170.07,0.00019898,2]
[316026700,1709328632262,-391.88,0.00019999,2]
[316026701,1709328632272,-612.22801672,0.00020022,2]
[316026702,1709328632281,-391.88,0.00020054,2]
[316026703,1709328632290,-499.99,0.00020055,2]
[316026704,1709328632299,-391.88,0.00020109,2]
[316026706,1709328632310,-721.92,0.00020156,2]
[316026708,1709328632319,-391.88,0.00020164,2]
[316026709,1709328632329,-391.88,0.00020218,2]
[316026711,1709328632339,-198.89287374,0.0002025,2]
[316026714,1709328632349,-391.88,0.00020273,2]
[316026716,1709328632361,-391.88,0.00020328,2]
[316026718,1709328632370,-391.88,0.00020383,2]
[316026720,1709328632379,-201.0,0.00020387,2]
[316026722,1709328632388,-300.0,0.00020405,2]
[316026724,1709328632397,-4904.48,0.00020412,2]
[316026726,1709328632406,-150.0,0.00020417,2]
[316026728,1709328632415,-391.88,0.00020438,2]
[316026769,1709328632799,-4850.35,0.00020461,2]
[316026771,1709328632809,-391.88,0.00020493,2]
[316026773,1709328632819,-4901.19,0.00020507,2]
[316026775,1709328632828,-250.0,0.00020516,2]
[316026777,1709328632837,-300.0,0.00020516,2]
[316026779,1709328632847,-150.0,0.00020516,2]
[316026781,1709328632859,-150.0,0.00020516,2]
[316026783,1709328632869,-178.0,0.00020516,2]
[316026785,1709328632878,-150.0,0.00020516,2]
[316026787,1709328632887,-500.0,0.00020516,2]
[316026789,1709328632897,-259.9,0.00020516,2]
[316026791,1709328632907,-391.88,0.00020547,2]
[316026794,1709328632917,-178.93,0.00020551,2]
[316026796,1709328632927,-381.0,0.00020551,2]
[316026798,1709328632937,-151.0,0.00020551,2]
[316026800,1709328632947,-176.0,0.00020551,2]
[316026802,1709328632956,-4827.01,0.00020564,2]
[316026804,1709328632965,-391.88,0.00020602,2]
[316026806,1709328632975,-4826.48,0.00020633,2]
[316026808,1709328632985,-259.9,0.00020653,2]
[316026810,1709328632994,-391.88,0.00020657,2]
[316026812,1709328633003,-391.88,0.00020712,2]
[316026814,1709328633012,-4803.11,0.00020724,2]
[316026816,1709328633024,-391.88,0.00020767,2]
[316026817,1709328633034,-259.9,0.0002079,2]
[316026820,1709328633045,-391.88,0.00020822,2]
[316026821,1709328633055,-385.17,0.0002084,2]
[316026824,1709328633064,-239.69,0.00020849,14]
[316026825,1709328633074,-155.93,0.00020851,2]
[316026827,1709328633084,-391.88,0.00020877,2]
[316026829,1709328633093,-221.33,0.00020882,2]
[316026832,1709328633104,-267.76,0.00020894,2]
[316026834,1709328633114,-277.04016646,0.00020927,2]
[316026836,1709328633125,-391.88,0.00020931,2]
[316026838,1709328633134,-391.88,0.00020986,2]
[316026840,1709328633143,-258.51689611,0.00020986,2]
[316026842,1709328633152,-711.390726,0.00021,2]
[316026844,1709328633163,-391.88,0.00021041,2]
[316026846,1709328633172,-178.0,0.00021064,2]
[316026848,1709328633181,-500.0,0.00021064,2]
[316026850,1709328633190,-475.39,0.00021067,2]
[316026852,1709328633199,-3691.4755,0.00021078,2]
[316026854,1709328633209,-7615.07,0.00021096,2]
[316026856,1709328633218,-802.51,0.00021096,2]
[316026858,1709328633228,-475.39,0.00021178,2]
[316026860,1709328633237,-1473.38,0.00021201,2]
[316026862,1709328633246,-178.93,0.00021213,2]
[316026864,1709328633255,-159.13843682,0.00021217,2]
[316026866,1709328633265,-381.0,0.00021236,2]
[316026868,1709328633274,-151.0,0.00021236,2]
[316026870,1709328633283,-152.0,0.00021236,2]
[316026872,1709328633293,-159.13843681,0.00021267,2]
[316026874,1709328633302,-289.967,0.00021287,2]
[316026876,1709328633311,-475.39,0.00021289,2]
[316026878,1709328633320,-539.79,0.00021291,3]
[316026880,1709328633329,-156099.0,0.00021301,2]
[316026882,1709328633339,-156.60997996,0.00021317,2]
[316026884,1709328633348,-166.83345617,0.00021317,2]
[316026885,1709328633359,-159.13843681,0.00021317,2]
[316026886,1709328633368,-156.60997996,0.0002135,2]
[316026887,1709328633378,-3286.0,0.0002137,2]
[316026888,1709328633387,-156.60997996,0.00021384,2]
[316026889,1709328633397,-475.39,0.000214,2]
[316026890,1709328633406,-423.02975116,0.00021404,2]
[316026891,1709328633415,-293.74451204,0.00021415,2]
[316026892,1709328633425,-155.0,0.00021415,2]
[316026893,1709328633434,-1009.64255081,0.00021415,2]
[316026894,1709328633444,-2138.99822812,0.00021415,2]
[316026895,1709328633453,-234.84782212,0.00021415,2]
[316026896,1709328633462,-1057.72421204,0.00021415,2]
[316026897,1709328633472,-155.0,0.00021415,2]
[316026898,1709328633482,-155.0,0.00021415,2]
[316026899,1709328633492,-408.84141908,0.00021415,2]
[316026900,1709328633501,-155.0,0.00021415,2]
[316026901,1709328633511,-203.97568013,0.00021415,2]
[316026902,1709328633521,-156.88035459,0.00021415,2]
[316026903,1709328633531,-231.77132963,0.00021415,2]
[316026904,1709328633540,-18715.96898896,0.00021415,2]
[316026905,1709328633555,-684.73830867,0.00021415,2]
[316026906,1709328633564,-33584.55520706,0.00021416,2]
[316026907,1709328633577,-21970.44479294,0.00021416,2]
[316026908,1709328633586,-391801.40858913,0.00021417,2]
[316026909,1709328633597,-212656.24861087,0.00021417,2]
[316026910,1709328633609,-16033.5298,0.00021417,2]
[316026911,1709328633618,-172.00034836,0.00021417,2]
[316026912,1709328633628,-4357.48530204,0.00021417,2]
[316026913,1709328633638,-156.60997996,0.00021417,2]
[316026914,1709328633647,-158.75080525,0.00021417,2]
[316026915,1709328633657,-2574.50738757,0.00021417,2]
[316026916,1709328633666,-356.66080333,0.00021417,2]
[316026917,1709328633676,-785.25635458,0.00021417,2]
[316026918,1709328633686,-7800.61944255,0.00021417,2]
[316026919,1709328633696,-1303.45817384,0.00021417,2]
[316026920,1709328633705,-182.64,0.00021475,2]
[316026921,1709328633715,-475.39,0.0002151,2]
[316026922,1709328633724,-407.3486941,0.00021515,20]
[316026923,1709328633734,-1136691.90032863,0.00021516,4]
[316026924,1709328633911,-12530.6,0.00021516,4]
[316026925,1709328633924,-65280.11210917,0.00021516,4]
[316026928,1709328638336,-1977675.04172825,0.00021516,4]
[316026929,1709328638345,-159.047,0.00021517,2]
[316026930,1709328638354,-9600.5004,0.00021517,2]
[316026931,1709328638365,-100000.0,0.00021517,2]
[316026932,1709328638374,-245000.0,0.00021517,2]
[316026934,1709328638383,-1000.0,0.00021517,2]
[316026936,1709328638393,-4357.48530198,0.00021552,2]
[316026938,1709328638402,-178.0,0.00021612,2]
[316026939,1709328638411,-500.0,0.00021612,2]
[316026940,1709328638420,-525.7,0.00021617,2]
[316026941,1709328638429,-475.39,0.00021621,2]
[316026942,1709328638438,-162.04,0.00021655,2]
[316026943,1709328638447,-182.63,0.00021677,2]
[316026944,1709328638456,-4357.48530198,0.00021686,2]
[316026945,1709328638465,-156.00765,0.00021698,2]
[316026946,1709328638475,-475.39,0.00021732,2]
[316026947,1709328638484,-150.0,0.00021787,2]
[316026948,1709328638493,-4357.48530198,0.00021821,2]
[316026949,1709328638502,-36808.1001,0.00021826,2]
[316026950,1709328638510,-273.5,0.00021837,2]
[316026951,1709328638519,-475.39,0.00021843,2]
[316026952,1709328638529,-155.93,0.00021844,2]
[316026953,1709328638538,-201.0,0.00021854,4]
[316026954,1709328638547,-221.33,0.00021876,2]
[316026955,1709328638556,-178.93,0.00021876,2]
[316026956,1709328638565,-384.50877493,0.00021899,2]
[316026957,1709328638574,-150.0,0.00021899,2]
[316026958,1709328638584,-324696.58280919,0.000219,2]
[316026959,1709328638593,-62649.62,0.000219,3]
[316026960,1709328638602,-9151.36249074,0.000219,2]
[316026961,1709328638613,-4907.03,0.00021911,2]
[316026962,1709328638622,-272.3469388,0.00021915,2]
[316026963,1709328638631,-443.66861213,0.00021915,2]
[316026964,1709328638640,-861.97104713,0.00021915,2]
[316026965,1709328638649,-155.0,0.00021915,2]
[316026966,1709328638658,-155.05367639,0.00021915,2]
[316026967,1709328638667,-163.33354568,0.00021915,2]
[316026968,1709328638676,-185.15461079,0.00021915,2]
[316026969,1709328638686,-216.45836637,0.00021915,2]
[316026970,1709328638695,-804.13814368,0.00021915,2]
[316026971,1709328638704,-239.06403164,0.00021915,2]
[316026972,1709328638714,-696.51527931,0.00021915,2]
[316026973,1709328638723,-185.21456437,0.00021915,2]
[316026974,1709328638732,-155.0,0.00021915,2]
[316026975,1709328638741,-181.95577315,0.00021915,2]
[316026976,1709328638751,-296.87733629,0.00021915,2]
[316026977,1709328638760,-155.0,0.00021915,2]
[316026978,1709328638770,-155.08303605,0.00021915,2]
[316026979,1709328638780,-358.703249,0.00021915,2]
[316026980,1709328638789,-290.38741738,0.00021915,2]
[316026981,1709328638799,-178.42181779,0.00021915,2]
[316026982,1709328638809,-500.0,0.00021917,2]
[316026983,1709328638818,-531.89747514,0.00021917,2]
[316026984,1709328638828,-500.0,0.00021917,2]
[316026985,1709328638837,-500.0,0.00021917,2]
[316026986,1709328638847,-614.07050678,0.00021917,2]
[316026987,1709328638857,-500.0,0.00021917,2]
[316026988,1709328638867,-500.0,0.00021917,2]
[316026989,1709328638876,-500.0,0.00021917,2]
[316026990,1709328638885,-500.0,0.00021917,2]
[316026991,1709328638895,-500.0,0.00021917,2]
[316026992,1709328638904,-500.0,0.00021917,2]
[316026993,1709328638913,-500.0,0.00021917,2]
[316026994,1709328638922,-500.0,0.00021917,2]
[316026995,1709328638932,-500.0,0.00021917,2]
[316026996,1709328638941,-500.0,0.00021917,2]
[316026997,1709328638951,-218.93254972,0.00021917,2]
[316026998,1709328638960,-500.0,0.00021917,2]
[316026999,1709328638969,-500.0,0.00021917,2]
[316027000,1709328638978,-500.0,0.00021917,2]
[316027001,1709328638988,-500.0,0.00021917,2]
[316027002,1709328638997,-518.11925092,0.00021917,2]
[316027003,1709328639006,-500.0,0.00021917,2]
[316027004,1709328639016,-500.0,0.00021917,2]
[316027005,1709328639027,-500.0,0.00021917,2]
[316027006,1709328639037,-500.0,0.00021917,2]
[316027007,1709328639047,-639.25543889,0.00021917,2]
[316027008,1709328639056,-500.0,0.00021917,2]
[316027009,1709328639066,-500.0,0.00021917,2]
[316027010,1709328639075,-500.0,0.00021917,2]
[316027011,1709328639084,-272.85,0.00021917,2]
[316027012,1709328639094,-210.6410629,0.00021917,2]
[316027013,1709328639103,-500.0,0.00021917,2]
[316027014,1709328639114,-500.0,0.00021917,2]
[316027015,1709328639124,-500.0,0.00021917,2]
[316027016,1709328639134,-500.0,0.00021917,2]
[316027017,1709328639143,-500.0,0.00021917,2]
[316027018,1709328639153,-500.0,0.00021917,2]
[316027019,1709328639162,-500.0,0.00021917,2]
[316027020,1709328639171,-515.40200695,0.00021917,2]
[316027021,1709328639180,-500.0,0.00021917,2]
[316027022,1709328639189,-500.0,0.00021917,2]
[316027023,1709328639198,-500.0,0.00021917,2]
[316027024,1709328639207,-500.0,0.00021917,2]
[316027025,1709328639216,-500.0,0.00021917,2]
[316027026,1709328639225,-500.0,0.00021917,2]
[316027027,1709328639234,-500.0,0.00021917,2]
[316027028,1709328639243,-500.0,0.00021917,2]
[316027029,1709328639252,-500.0,0.00021917,2]
[316027030,1709328639261,-500.0,0.00021917,2]
[316027031,1709328639270,-500.0,0.00021917,2]
[316027032,1709328639279,-496.3292874,0.00021917,2]
[316027033,1709328639288,-500.0,0.00021917,2]
[316027034,1709328639297,-500.0,0.00021917,2]
[316027035,1709328639306,-277.42,0.00021917,2]
[316027036,1709328639315,-500.0,0.00021917,2]
[316027037,1709328639324,-500.0,0.00021917,2]
[316027038,1709328639333,-500.0,0.00021917,2]
[316027039,1709328639343,-500.0,0.00021917,2]
[316027040,1709328639352,-379.88244944,0.00021917,2]
[316027041,1709328639362,-500.0,0.00021917,2]
[316027042,1709328639371,-500.0,0.00021917,2]
[316027043,1709328639380,-500.0,0.00021917,2]
[316027044,1709328639389,-516.95388005,0.00021917,2]
[316027045,1709328639399,-500.0,0.00021917,2]
[316027046,1709328639408,-500.0,0.00021917,2]
[316027047,1709328639417,-500.0,0.00021917,2]
[316027048,1709328639427,-479.33971434,0.00021917,2]
[316027049,1709328639436,-500.0,0.00021917,2]
[316027050,1709328639445,-607.65860422,0.00021917,2]
[316027051,1709328639454,-500.0,0.00021917,2]
[316027052,1709328639464,-559.20819507,0.00021917,2]
[316027053,1709328639473,-500.0,0.00021917,2]
[316027054,1709328639482,-500.0,0.00021917,2]
[316027055,1709328639491,-226.69,0.00021917,2]
[316027056,1709328639501,-374.89108221,0.00021917,2]
[316027057,1709328639510,-500.0,0.00021917,2]
[316027058,1709328639520,-500.0,0.00021917,2]
[316027059,1709328639530,-500.0,0.00021917,2]
[316027060,1709328639539,-500.0,0.00021917,2]
[316027061,1709328639549,-500.0,0.00021917,2]
[316027062,1709328639558,-500.0,0.00021917,2]
[316027063,1709328639567,-500.0,0.00021917,2]
[316027064,1709328639577,-418.23021046,0.00021917,2]
[316027065,1709328639586,-500.0,0.00021917,2]
[316027066,1709328639595,-500.0,0.00021917,2]
[316027067,1709328639604,-500.0,0.00021917,2]
[316027068,1709328639616,-500.0,0.00021917,2]
[316027069,1709328639626,-300.0,0.00021917,2]
[316027070,1709328639635,-300.0,0.00021917,2]
[316027071,1709328639645,-300.0,0.00021917,2]
[316027072,1709328639654,-300.0,0.00021917,2]
[316027073,1709328639664,-300.0,0.00021917,2]
[316027074,1709328639673,-339.78258612,0.00021917,2]
[316027075,1709328639682,-500.0,0.00021917,2]
[316027076,1709328639691,-500.0,0.00021917,2]
[316027077,1709328639701,-500.0,0.00021917,2]
[316027078,1709328639710,-500.0,0.00021917,2]
[316027079,1709328639720,-500.0,0.00021917,2]
[316027080,1709328639729,-500.0,0.00021917,2]
[316027081,1709328639739,-500.0,0.00021917,2]
[316027082,1709328639748,-500.0,0.00021917,2]
[316027083,1709328639757,-500.0,0.00021917,2]
[316027084,1709328639767,-500.0,0.00021917,2]
[316027085,1709328639776,-500.0,0.00021917,2]
[316027086,1709328639785,-500.0,0.00021917,2]
[316027087,1709328639796,-500.0,0.00021917,2]
[316027088,1709328639805,-500.0,0.00021917,2]
[316027089,1709328639815,-500.0,0.00021917,2]
[316027090,1709328639824,-500.0,0.00021917,2]
[316027091,1709328639834,-500.0,0.00021917,2]
[316027092,1709328639844,-500.0,0.00021917,2]
[316027093,1709328639853,-500.0,0.00021917,2]
[316027094,1709328639864,-500.0,0.00021917,2]
[316027095,1709328639873,-500.0,0.00021917,2]
[316027096,1709328639882,-500.0,0.00021917,2]
[316027097,1709328639891,-500.0,0.00021917,2]
[316027098,1709328639900,-152.4604481,0.00021917,2]
[316027099,1709328639909,-500.0,0.00021917,2]
[316027100,1709328639919,-500.0,0.00021917,2]
[316027101,1709328639928,-500.0,0.00021917,2]
[316027102,1709328639937,-500.0,0.00021917,2]
[316027103,1709328639946,-500.0,0.00021917,2]
[316027104,1709328639955,-500.0,0.00021917,2]
[316027105,1709328639965,-500.0,0.00021917,2]
[316027106,1709328639973,-500.0,0.00021917,2]
[316027107,1709328639982,-500.0,0.00021917,2]
[316027108,1709328639991,-500.0,0.00021917,2]
[316027109,1709328640001,-500.0,0.00021917,2]
[316027110,1709328640010,-500.0,0.00021917,2]
[316027111,1709328640023,-500.0,0.00021917,2]
[316027112,1709328640033,-500.0,0.00021917,2]
[316027113,1709328640042,-516.52915069,0.00021917,2]
[316027114,1709328640051,-500.0,0.00021917,2]
[316027115,1709328640060,-500.0,0.00021917,2]
[316027116,1709328640070,-500.0,0.00021917,2]
[316027117,1709328640079,-500.0,0.00021917,2]
[316027118,1709328640088,-500.0,0.00021917,2]
[316027119,1709328640098,-500.0,0.00021917,2]
[316027120,1709328640108,-500.0,0.00021917,2]
[316027121,1709328640118,-500.0,0.00021917,2]
[316027122,1709328640127,-500.0,0.00021917,2]
[316027123,1709328640136,-500.0,0.00021917,2]
[316027124,1709328640146,-500.0,0.00021917,2]
[316027125,1709328640155,-500.0,0.00021917,2]
[316027126,1709328640164,-500.0,0.00021917,2]
[316027127,1709328640173,-500.0,0.00021917,2]
[316027128,1709328640182,-500.0,0.00021917,2]
[316027129,1709328640192,-500.0,0.00021917,2]
[316027130,1709328640201,-500.0,0.00021917,2]
[316027131,1709328640211,-500.0,0.00021917,2]
[316027132,1709328640220,-500.0,0.00021917,2]
[316027133,1709328640230,-806.31,0.00021917,2]
[316027134,1709328640239,-500.0,0.00021917,2]
[316027135,1709328640248,-868.44,0.00021917,2]
[316027136,1709328640257,-500.0,0.00021917,2]
[316027137,1709328640266,-500.0,0.00021917,2]
[316027138,1709328640275,-500.0,0.00021917,2]
[316027139,1709328640284,-500.0,0.00021917,2]
[316027140,1709328640293,-500.0,0.00021917,2]
[316027141,1709328640302,-520.71,0.00021917,2]
[316027142,1709328640311,-500.0,0.00021917,2]
[316027143,1709328640321,-500.0,0.00021917,2]
[316027144,1709328640331,-500.0,0.00021917,2]
[316027145,1709328640340,-500.0,0.00021917,2]
[316027146,1709328640349,-519.88898457,0.00021917,2]
[316027147,1709328640358,-500.0,0.00021917,2]
[316027148,1709328640367,-500.0,0.00021917,2]
[316027149,1709328640376,-500.0,0.00021917,2]
[316027150,1709328640386,-544.97102796,0.00021917,2]
[316027151,1709328640395,-500.0,0.00021917,2]
[316027152,1709328640404,-500.0,0.00021917,2]
[316027153,1709328640413,-500.0,0.00021917,2]
[316027154,1709328640422,-500.0,0.00021917,2]
[316027155,1709328640431,-500.0,0.00021917,2]
[316027156,1709328640441,-500.0,0.00021917,2]
[316027157,1709328640449,-500.0,0.00021917,2]
[316027158,1709328640458,-500.0,0.00021917,2]
[316027159,1709328640467,-500.0,0.00021917,2]
[316027160,1709328640476,-284.07680892,0.00021917,2]
[316027161,1709328640485,-500.0,0.00021917,2]
[316027162,1709328640494,-500.0,0.00021917,2]
[316027163,1709328640503,-526.71,0.00021917,2]
[316027164,1709328640512,-500.0,0.00021917,2]
[316027165,1709328640522,-500.0,0.00021917,2]
[316027166,1709328640531,-500.0,0.00021917,2]
[316027167,1709328640540,-500.0,0.00021917,2]